bitfinex-derivatives/quotes_BTCF0:USTF0_20250922
["timestamp","ask_amount","ask_price","bid_price","bid_amount"]
[1758554512630,1.28069891,112800.0,112790.0,0.1245589]
[1758554514738,1.36928981,112800.0,112790.0,0.1245589]
[1758554515933,1.28069891,112800.0,112790.0,0.1245589]
[1758554516429,0.44589891,112800.0,112790.0,0.47049026]
[1758554516735,1.27377891,112800.0,112790.0,0.47049026]
[1758554516936,1.28065891,112800.0,112790.0,0.47049026]
[1758554517733,1.27377891,112800.0,112790.0,0.47049026]
[1758554519536,1.28065891,112800.0,112790.0,0.47049026]
[1758554519928,1.28065891,112800.0,112790.0,0.1245589]
[1758554520328,1.71518117,112800.0,112790.0,0.1245589]
[1758554521128,1.71518117,112800.0,112790.0,0.1241589]
[1758554521329,1.71518117,112800.0,112790.0,0.1245589]
[1758554522137,1.71518117,112800.0,112790.0,0.1241589]
[1758554522435,1.62659027,112800.0,112790.0,0.1245589]
[1758554525038,1.28065891,112800.0,112790.0,0.1245589]
[1758554525242,1.62659027,112800.0,112790.0,0.1245589]
[1758554526039,0.44589891,112800.0,112790.0,0.1245589]
[1758554526539,1.28053891,112800.0,112790.0,0.47049026]
[1758554526836,1.28053891,112800.0,112790.0,0.1245589]
[1758554527135,1.71506117,112800.0,112790.0,0.1245589]
[1758554527541,1.96936117,112800.0,112790.0,0.0889989]
[1758554527737,1.96936117,112800.0,112790.0,0.0885989]
[1758554527934,1.96936117,112800.0,112790.0,0.0889989]
[1758554528239,1.96502117,112800.0,112790.0,0.1245689]
[1758554528640,2.13780427,112800.0,112790.0,0.1245689]
[1758554529238,1.30320427,112800.0,112790.0,0.1245689]
[1758554529435,2.13780427,112800.0,112790.0,0.1245689]
[1758554530036,1.30320427,112800.0,112790.0,0.1245689]
[1758554530239,2.13780427,112800.0,112790.0,0.1245689]
[1758554530747,2.13780427,112800.0,112790.0,0.1021489]
[1758554532143,1.30320427,112800.0,112790.0,0.1021489]
[1758554532347,2.13780427,112800.0,112790.0,0.1245689]
[1758554532548,2.13780427,112800.0,112790.0,0.1021489]
[1758554532746,2.13780427,112800.0,112790.0,0.1245689]
[1758554533047,1.30320427,112800.0,112790.0,0.1245689]
[1758554533250,2.13776427,112800.0,112790.0,0.1245689]
[1758554533948,1.30320427,112800.0,112790.0,0.1245689]
[1758554534150,2.13776427,112800.0,112790.0,0.1245689]
[1758554534650,2.42074842,112800.0,112780.0,0.0001]
[1758554534852,0.88639446,112790.0,112780.0,0.0001]
[1758554535042,0.88639446,112790.0,112780.0,0.0008]
[1758554535245,0.88639446,112790.0,112770.0,0.03389889]
[1758554535448,1.72095446,112780.0,112770.0,0.05711889]
[1758554535649,1.81386056,112780.0,112770.0,0.02038889]
[1758554535950,1.81186056,112780.0,112770.0,0.02078889]
[1758554536852,1.80756056,112780.0,112770.0,0.01359]
[1758554537052,2.05756056,112780.0,112770.0,0.00044]
[1758554537747,2.05756056,112780.0,112770.0,0.00444]
[1758554538051,2.05756056,112780.0,112770.0,0.00544]
[1758554538251,1.22300056,112780.0,112770.0,0.00544]
[1758554538454,2.05756056,112780.0,112770.0,0.00544]
[1758554540549,1.22300056,112780.0,112770.0,0.00544]
[1758554541151,2.05752056,112780.0,112770.0,0.00544]
[1758554542660,1.80752056,112780.0,112770.0,0.00504]
[1758554542856,0.97300056,112780.0,112770.0,0.00544]
[1758554543455,1.80752056,112780.0,112770.0,0.04101]
[1758554544360,1.80752056,112780.0,112770.0,0.00544]
[1758554547157,1.83114395,112780.0,112770.0,0.00544]
[1758554547658,0.99662395,112780.0,112770.0,0.00544]
[1758554548061,1.83110395,112780.0,112770.0,0.00544]
[1758554550164,0.99662395,112780.0,112770.0,0.00544]
[1758554550664,1.80744056,112780.0,112770.0,0.00544]
[1758554551766,0.97300056,112780.0,112770.0,0.00544]
[1758554551967,1.80740056,112780.0,112770.0,0.00544]
[1758554554363,2.06675779,112780.0,112770.0,0.00544]
[1758554554563,2.3403604,112780.0,112750.0,0.01319]
[1758554554769,1.24719446,112760.0,112750.0,0.03635]
[1758554555069,2.08155446,112760.0,112750.0,0.03635]
[1758554555257,2.08155446,112760.0,112750.0,0.03675]
[1758554556957,2.17017326,112760.0,112750.0,0.03675]
[1758554557162,1.33581326,112760.0,112750.0,0.1273767]
[1758554557358,0.8170988,112760.0,112750.0,0.38673393]
[1758554557665,1.91073603,112760.0,112750.0,0.1303767]
[1758554557866,1.07645603,112760.0,112750.0,0.38973393]
[1758554558068,1.91077603,112760.0,112750.0,0.38973393]
[1758554558271,1.91077603,112760.0,112750.0,0.38673393]
[1758554558566,0.72848,112760.0,112750.0,0.63773393]
[1758554558870,1.56276,112760.0,112750.0,0.63773393]
[1758554559069,1.82211723,112760.0,112750.0,0.63773393]
[1758554559271,1.82211723,112760.0,112750.0,0.38773393]
[1758554559457,1.05844404,112760.0,112750.0,0.38773393]
[1758554559663,1.89272404,112760.0,112750.0,0.38773393]
[1758554560258,1.05844404,112760.0,112750.0,0.38773393]
[1758554560564,0.43140681,112760.0,112750.0,0.89709116]
[1758554560765,0.90484681,112760.0,112750.0,0.89709116]
[1758554560963,0.90484681,112760.0,112750.0,0.63773393]
[1758554561370,0.07060681,112760.0,112750.0,0.89709116]
[1758554561670,0.00688,112770.0,112760.0,0.1256286]
[1758554561869,0.84112,112770.0,112760.0,0.64434306]
[1758554562169,1.46127723,112770.0,112760.0,0.38498583]
[1758554563571,1.46227723,112770.0,112760.0,0.38498583]
[1758554563871,0.3618,112770.0,112760.0,0.89434306]
[1758554564180,1.20288,112770.0,112760.0,0.63498583]
[1758554564365,1.46223723,112770.0,112760.0,0.63498583]
[1758554564570,1.2914941,112770.0,112760.0,0.38498583]
[1758554564763,1.55085133,112770.0,112760.0,0.1256319]
[1758554565366,1.55085133,112770.0,112760.0,0.1260319]
[1758554565566,1.2914941,112770.0,112760.0,0.1260319]
[1758554565764,1.55085133,112770.0,112760.0,0.1260319]
[1758554565964,2.06020856,112770.0,112760.0,0.0004]
[1758554566166,2.07820207,112770.0,112750.0,0.01319]
[1758554566369,0.88639446,112760.0,112750.0,0.01319]
[1758554566672,0.95639154,112760.0,112750.0,0.01399]
[1758554566969,0.95639154,112760.0,112750.0,0.03635]
[1758554567270,0.95639154,112760.0,112750.0,0.1253798]
[1758554567565,0.95639154,112760.0,112750.0,0.1263798]
[1758554567762,0.95639154,112760.0,112750.0,0.1283798]
[1758554568071,0.95639154,112760.0,112750.0,0.1273798]
[1758554568258,0.95639154,112760.0,112750.0,0.1283798]
[1758554568459,0.95639154,112760.0,112750.0,0.03975]
[1758554568663,0.95639154,112760.0,112750.0,0.01659]
[1758554569472,0.95639154,112760.0,112750.0,0.1052198]
[1758554569773,0.95639154,112760.0,112750.0,0.1283798]
[1758554570365,0.95639154,112760.0,112750.0,0.01659]
[1758554570774,0.95639154,112760.0,112750.0,0.1283798]
[1758554571974,1.53107431,112760.0,112750.0,0.38773703]
[1758554572179,1.53103431,112760.0,112750.0,0.38773703]
[1758554572379,1.53103431,112760.0,112750.0,0.1283798]
[1758554573768,1.87901344,112760.0,112750.0,0.1283798]
[1758554575177,1.79039154,112760.0,112750.0,0.1283798]
[1758554575377,1.53103431,112760.0,112750.0,0.38773703]
[1758554576178,1.81417897,112760.0,112750.0,0.38773703]
[1758554576380,1.81417897,112760.0,112750.0,0.1283798]
[1758554576880,1.79039154,112760.0,112750.0,0.1283798]
[1758554577080,1.81417897,112760.0,112750.0,0.1283798]
[1758554577277,1.79039154,112760.0,112750.0,0.1283798]
[1758554577476,1.81417794,112760.0,112750.0,0.1283798]
[1758554577974,1.90279984,112760.0,112750.0,0.00344]
[1758554578188,1.90279984,112760.0,112750.0,0.00304]
[1758554578377,1.90279984,112760.0,112750.0,0.01636]
[1758554578578,1.81417794,112760.0,112750.0,0.1281498]
[1758554578883,1.29546348,112760.0,112750.0,0.1281498]
[1758554579184,1.81417794,112760.0,112750.0,0.1281498]
[1758554582178,1.81417794,112760.0,112750.0,0.03952]
[1758554582380,1.81417794,112760.0,112750.0,0.1281498]
[1758554582579,1.81417794,112760.0,112750.0,0.00344]
[1758554582880,1.81847794,112760.0,112750.0,0.00344]
[1758554583278,1.81847794,112760.0,112750.0,0.0920698]
[1758554583578,1.81417794,112760.0,112750.0,0.0920698]
[1758554584685,1.81417794,112760.0,112750.0,0.1049898]
[1758554584982,1.81417794,112760.0,112750.0,0.01636]
[1758554585183,1.79039154,112760.0,112750.0,0.01636]
[1758554585586,1.8141715,112760.0,112750.0,0.00344]
[1758554585781,1.9027934,112760.0,112750.0,0.00344]
[1758554586189,1.87901344,112760.0,112750.0,0.00344]
[1758554588189,1.04501344,112760.0,112750.0,0.00344]
[1758554588389,1.87869344,112760.0,112750.0,0.00344]
[1758554588589,1.70606501,112760.0,112750.0,0.00344]
[1758554589383,1.70602501,112760.0,112750.0,0.00344]
[1758554589785,2.07588957,112760.0,112750.0,0.00344]
[1758554590193,2.07588957,112760.0,112750.0,0.00304]
[1758554590389,2.07588957,112760.0,112750.0,0.00344]
[1758554590788,1.24224957,112760.0,112750.0,0.00344]
[1758554590989,2.07588957,112760.0,112750.0,0.00344]
[1758554591389,1.24224957,112760.0,112750.0,0.00344]
[1758554591689,2.07584957,112760.0,112750.0,0.00344]
[1758554593797,2.07584957,112760.0,112750.0,0.00304]
[1758554593988,2.07584957,112760.0,112750.0,0.00344]
[1758554594788,3.59788354,112760.0,112750.0,0.00304]
[1758554594996,3.59788354,112760.0,112750.0,0.03836]
[1758554595190,3.59788354,112760.0,112750.0,0.00344]
[1758554595493,0.89616354,112760.0,112750.0,0.00344]
[1758554595693,1.72968354,112760.0,112750.0,0.00344]
[1758554598695,2.07576957,112760.0,112750.0,0.00304]
[1758554598896,2.07576957,112760.0,112750.0,0.00344]
[1758554600703,2.07568957,112760.0,112750.0,0.00344]
[1758554600901,0.55007751,112760.0,112750.0,0.0920681]
[1758554601096,1.72956354,112760.0,112750.0,0.0920681]
[1758554601507,1.72956354,112760.0,112750.0,0.1269881]
[1758554601999,1.72956354,112760.0,112750.0,0.1058281]
[1758554603097,0.80754164,112760.0,112750.0,0.1058281]
[1758554603302,1.72952174,112760.0,112750.0,0.1269881]
[1758554603803,0.89616174,112760.0,112750.0,0.1269881]
[1758554604007,0.46145561,112760.0,112750.0,0.1269881]
[1758554604398,0.46145561,112760.0,112750.0,0.3769881]
[1758554604604,1.29477561,112760.0,112750.0,0.3769881]
[1758554604904,0.46145561,112760.0,112750.0,0.3769881]
[1758554605303,1.29477561,112760.0,112750.0,0.3769881]
[1758554605908,1.64086164,112760.0,112750.0,0.3769881]
[1758554606107,1.72948184,112760.0,112750.0,0.3769881]
[1758554606792,1.64078164,112760.0,112750.0,0.3769881]
[1758554607000,0.46145561,112760.0,112750.0,0.72307413]
[1758554607200,1.26403708,112760.0,112750.0,0.72307413]
[1758554607402,0.90323708,112760.0,112750.0,0.72307413]
[1758554608703,0.91011708,112760.0,112750.0,0.72307413]
[1758554609403,1.27091708,112760.0,112750.0,0.72307413]
[1758554610413,0.43767708,112760.0,112750.0,0.72307413]
[1758554610612,1.27079708,112760.0,112750.0,0.72307413]
[1758554610809,0.90999708,112760.0,112750.0,0.72307413]
[1758554611412,1.27079708,112760.0,112750.0,0.72307413]
[1758554611916,0.43767708,112760.0,112750.0,0.72307413]
[1758554612114,1.27079708,112760.0,112750.0,0.72307413]
[1758554612517,1.27079708,112760.0,112750.0,0.3769881]
[1758554614218,1.27079708,112760.0,112750.0,0.72307413]
[1758554614419,1.27079708,112760.0,112750.0,0.3769881]
[1758554614820,1.61688311,112760.0,112750.0,0.3769881]
[1758554615523,1.27079708,112760.0,112750.0,0.3769881]
[1758554619326,1.27079708,112760.0,112750.0,0.1269881]
[1758554620931,1.27043708,112760.0,112750.0,0.1269881]
[1758554621531,1.27039708,112760.0,112750.0,0.1269881]
[1758554621726,1.27039708,112760.0,112750.0,0.47307413]
[1758554622429,2.21256914,112760.0,112750.0,0.03836]
[1758554622630,2.21256914,112760.0,112750.0,0.00304]
[1758554622833,1.86648311,112760.0,112750.0,0.00344]
[1758554623630,1.86648311,112760.0,112750.0,0.00304]
[1758554623830,1.86648311,112760.0,112750.0,0.00344]
[1758554625133,1.86648311,112760.0,112750.0,0.00304]
[1758554625333,1.86648311,112760.0,112750.0,0.00344]
[1758554626232,1.86636311,112760.0,112750.0,0.00344]
[1758554627026,1.03376311,112760.0,112750.0,0.00344]
[1758554627234,1.86632311,112760.0,112750.0,0.00344]
[1758554627936,1.89014364,112760.0,112750.0,0.00344]
[1758554629836,1.89010364,112760.0,112750.0,0.00344]
[1758554631031,1.89006364,112760.0,112750.0,0.00344]
[1758554631429,0.71149761,112760.0,112750.0,0.03778]
[1758554631636,1.89002364,112760.0,112750.0,0.03778]
[1758554631837,1.05758364,112760.0,112750.0,0.03778]
[1758554632036,1.89002364,112760.0,112750.0,0.03778]
[1758554632539,1.54393761,112760.0,112750.0,0.03778]
[1758554632835,1.05758364,112760.0,112750.0,0.03778]
[1758554633226,1.63998364,112760.0,112750.0,0.1264099]
[1758554633429,1.29389761,112760.0,112750.0,0.1264099]
[1758554633628,0.43767708,112760.0,112750.0,0.1264099]
[1758554633828,0.46149876,112760.0,112750.0,0.3764099]
[1758554634036,1.35865908,112760.0,112750.0,0.3764099]
[1758554634232,1.70474511,112760.0,112750.0,0.03778]
[1758554634537,1.72856728,112760.0,112750.0,0.00344]
[1758554634729,1.72856728,112760.0,112750.0,0.01696]
[1758554635032,1.72856728,112760.0,112750.0,0.03927]
[1758554635226,1.72856728,112760.0,112750.0,0.01656]
[1758554635426,1.72856728,112760.0,112750.0,0.01696]
[1758554635927,2.07465331,112760.0,112750.0,0.01696]
[1758554636339,2.07465331,112760.0,112750.0,0.00344]
[1758554636826,2.07465331,112760.0,112750.0,0.00304]
[1758554637022,2.07465331,112760.0,112750.0,0.00344]
[1758554637635,2.07465331,112760.0,112750.0,0.00304]
[1758554637836,2.07465331,112760.0,112750.0,0.00344]
[1758554642139,0.55012125,112760.0,112750.0,0.00344]
[1758554642342,2.07445331,112760.0,112750.0,0.00344]
[1758554645637,2.07445331,112760.0,112750.0,0.00304]
[1758554646351,2.07445331,112760.0,112750.0,0.00344]
[1758554646939,3.94265331,112760.0,112750.0,0.00344]
[1758554647237,1.24229331,112760.0,112750.0,0.00344]
[1758554647742,2.07425331,112760.0,112750.0,0.00344]
[1758554648642,4.02921597,112760.0,112750.0,0.00344]
[1758554650639,1.32897597,112760.0,112750.0,0.00344]
[1758554650942,4.02913597,112760.0,112750.0,0.00344]
[1758554656946,0.0886298,112750.0,112740.0,0.0006496]
[1758554657150,1.3698598,112750.0,112720.0,0.02017717]
[1758554657352,1.33636198,112730.0,112720.0,0.04420717]
[1758554657652,1.33636198,112730.0,112720.0,0.00712717]
[1758554657845,1.3542981,112730.0,112720.0,0.00712717]
[1758554658238,2.1858981,112730.0,112720.0,0.00632717]
[1758554658446,2.1858981,112730.0,112720.0,0.00672717]
[1758554658646,2.1868981,112730.0,112720.0,0.01672717]
[1758554658947,2.19471231,112730.0,112720.0,0.01672717]
[1758554659147,0.84387583,112730.0,112720.0,0.05325717]
[1758554659448,1.93505407,112730.0,112720.0,0.04325717]
[1758554659645,1.04089367,112730.0,112720.0,0.04325717]
[1758554659844,1.96109917,112730.0,112720.0,0.04325717]
[1758554660039,2.22071741,112730.0,112720.0,0.04325717]
[1758554661653,2.19667231,112730.0,112720.0,0.04325717]
[1758554664055,2.19667231,112730.0,112720.0,0.02002717]
[1758554664355,2.19667231,112730.0,112720.0,0.00672717]
[1758554664556,2.22068932,112730.0,112720.0,0.00672717]
[1758554665463,2.22068604,112730.0,112720.0,0.00672717]
[1758554666250,2.48030428,112730.0,112720.0,0.00672717]
[1758554666651,2.48030428,112730.0,112720.0,0.00632717]
[1758554666852,2.22068604,112730.0,112720.0,0.00672717]
[1758554667353,2.45629055,112730.0,112720.0,0.00672717]
[1758554667556,2.22068021,112730.0,112720.0,0.00672717]
[1758554669058,1.38912021,112730.0,112720.0,0.00672717]
[1758554669259,4.08920021,112730.0,112720.0,0.00672717]
[1758554670554,4.34881845,112730.0,112720.0,0.00672717]
[1758554670758,4.34881845,112730.0,112720.0,0.00632717]
[1758554671061,4.34881845,112730.0,112720.0,0.00672717]
[1758554671656,4.34881845,112730.0,112720.0,0.00632717]
[1758554671864,4.34881845,112730.0,112720.0,0.00672717]
[1758554672054,4.59881845,112730.0,112720.0,0.00632717]
[1758554672362,0.0955298,112720.0,112700.0,4e-05]
[1758554672556,2.17207408,112710.0,112700.0,0.00084]
[1758554672756,2.18982784,112710.0,112700.0,4e-05]
[1758554672956,2.18982784,112710.0,112700.0,0.00044]
[1758554673260,2.25974967,112710.0,112700.0,0.00044]
[1758554674563,2.25974967,112710.0,112700.0,0.00544]
[1758554674763,2.25974967,112710.0,112700.0,0.00744]
[1758554675062,2.26174967,112710.0,112700.0,0.00244]
[1758554675460,1.45433828,112710.0,112700.0,0.00244]
[1758554675758,2.54631652,112710.0,112700.0,0.00044]
[1758554676152,1.96495652,112710.0,112700.0,4e-05]
[1758554676354,1.96495652,112710.0,112700.0,0.00044]
[1758554676558,4.66515652,112710.0,112700.0,0.00044]
[1758554677656,1.96495652,112710.0,112700.0,4e-05]
[1758554677856,4.40557828,112710.0,112700.0,0.00044]
[1758554678060,4.66519652,112710.0,112700.0,0.00044]
[1758554678261,1.70533828,112710.0,112700.0,0.00044]
[1758554678463,4.40557828,112710.0,112700.0,0.00044]
[1758554678656,1.96495652,112710.0,112700.0,0.00044]
[1758554678857,4.66519652,112710.0,112700.0,0.00044]
[1758554679265,4.41519652,112710.0,112700.0,0.00044]
[1758554679476,1.71495652,112710.0,112700.0,0.00044]
[1758554679775,4.41523652,112710.0,112700.0,0.00044]
[1758554681376,1.71495652,112710.0,112700.0,0.00044]
[1758554681576,4.41523652,112710.0,112700.0,0.00044]
[1758554682079,1.71495652,112710.0,112700.0,0.00044]
[1758554682279,4.41523652,112710.0,112700.0,0.00044]
[1758554682781,0.0886733,112690.0,112680.0,0.00036]
[1758554683077,0.088681,112680.0,112670.0,0.01329]
[1758554683277,0.97495748,112680.0,112670.0,0.03487]
[1758554683880,0.97495748,112680.0,112670.0,0.3743588]
[1758554684078,1.80419748,112680.0,112670.0,0.3743588]
[1758554684279,1.80419748,112680.0,112670.0,0.3833588]
[1758554684280,1.80519748,112680.0,112670.0,0.3833588]
[1758554684874,0.97395748,112680.0,112670.0,0.3873588]
[1758554685282,1.80419748,112680.0,112670.0,0.3783588]
[1758554685482,1.80419748,112680.0,112670.0,0.3833588]
[1758554686587,1.284961,112680.0,112670.0,0.3833588]
[1758554686882,1.80419748,112680.0,112670.0,0.3833588]
[1758554687084,0.97295748,112680.0,112670.0,0.3833588]
[1758554687378,0.36704,112690.0,112680.0,0.123591]
[1758554687574,1.5705997,112690.0,112680.0,0.123591]
[1758554688178,0.7393997,112690.0,112680.0,0.123591]
[1758554688477,1.4819265,112690.0,112680.0,0.127591]
[1758554688684,0.6507265,112690.0,112680.0,0.128591]
[1758554688879,0.62665824,112690.0,112680.0,0.38820924]
[1758554689180,1.45781824,112690.0,112680.0,0.38820924]
[1758554689380,0.62665824,112690.0,112680.0,0.378591]
[1758554689575,1.19196,112690.0,112680.0,0.63820924]
[1758554689773,1.45157824,112690.0,112680.0,0.63820924]
[1758554690174,1.09077824,112690.0,112680.0,0.63820924]
[1758554690478,1.45781824,112690.0,112680.0,0.378591]
[1758554690678,1.31094544,112690.0,112680.0,0.378591]
[1758554690878,1.57056368,112690.0,112680.0,0.378591]
[1758554691080,1.48189018,112690.0,112680.0,0.63820924]
[1758554691381,0.63817699,112700.0,112680.0,0.63820924]
[1758554691583,0.75715687,112700.0,112690.0,0.1235835]
[1758554691884,1.32861863,112700.0,112690.0,0.1235835]
[1758554692380,0.40887273,112700.0,112690.0,0.1235835]
[1758554692579,0.02407398,112700.0,112690.0,0.7343835]
[1758554692784,0.34729383,112710.0,112700.0,0.1235754]
[1758554692980,0.94279414,112710.0,112700.0,0.64281188]
[1758554693186,1.20865238,112710.0,112700.0,0.38319364]
[1758554693374,1.56945238,112710.0,112700.0,0.38319364]
[1758554693575,1.56945238,112710.0,112700.0,0.1235754]
[1758554694780,1.57445238,112710.0,112700.0,0.1235754]
[1758554695182,1.57645238,112710.0,112700.0,0.1235754]
[1758554695483,1.57645238,112710.0,112700.0,0.38319364]
[1758554695685,0.47955414,112710.0,112700.0,0.89281188]
[1758554695985,1.20933238,112710.0,112700.0,0.89281188]
[1758554696183,1.20933238,112710.0,112700.0,0.99399364]
[1758554697185,1.20733238,112710.0,112700.0,1.25361188]
[1758554697380,0.11775414,112710.0,112700.0,1.25361188]
[1758554697684,0.92459559,112710.0,112700.0,1.25361188]
[1758554697886,0.91959559,112710.0,112700.0,1.25361188]
[1758554698089,1.18021383,112710.0,112700.0,0.7343754]
[1758554698385,1.18021383,112710.0,112700.0,1.25361188]
[1758554698580,1.17821383,112710.0,112700.0,1.25761188]
[1758554699374,0.91851559,112710.0,112700.0,1.25761188]
[1758554699577,0.91843559,112710.0,112700.0,1.25761188]
[1758554700488,0.83076,112710.0,112700.0,1.25761188]
[1758554700683,0.4581297,112730.0,112720.0,0.01363]
[1758554700882,1.57880575,112730.0,112720.0,0.38379794]
[1758554701083,1.31918751,112730.0,112720.0,0.38379794]
[1758554701282,0.3694824,112730.0,112720.0,0.64341618]
[1758554701591,0.70905864,112740.0,112730.0,0.1241718]
[1758554701592,0.71529284,112740.0,112730.0,0.1241718]
[1758554701785,1.57006465,112740.0,112730.0,0.38379004]
[1758554702292,1.2863546,112740.0,112730.0,0.38379004]
[1758554702488,1.81444763,112740.0,112730.0,0.38379004]
[1758554702789,1.81444763,112740.0,112730.0,0.1241718]
[1758554703288,1.29521115,112740.0,112730.0,0.1241718]
[1758554703490,1.29521115,112740.0,112730.0,0.38379004]
[1758554703691,0.37365655,112740.0,112730.0,0.38379004]
[1758554703889,0.004,112740.0,112730.0,1.25420828]
[1758554704095,0.80592,112740.0,112730.0,1.25420828]
[1758554704489,1.20929561,112750.0,112740.0,0.1241639]
[1758554704690,1.20929561,112750.0,112740.0,0.64340038]
[1758554705796,1.21829561,112750.0,112740.0,0.64440038]
[1758554706700,1.48815385,112750.0,112740.0,0.38478214]
[1758554706903,1.57677965,112750.0,112740.0,0.38478214]
[1758554707198,1.56653965,112750.0,112740.0,0.38378214]
[1758554707399,1.56877965,112750.0,112740.0,0.1241639]
[1758554707599,1.31016141,112750.0,112740.0,0.38378214]
[1758554707800,1.56577965,112750.0,112740.0,0.38378214]
[1758554708192,1.63649907,112750.0,112740.0,0.38378214]
[1758554708399,1.63649907,112750.0,112740.0,0.1241639]
[1758554708601,1.54787327,112750.0,112740.0,0.38378214]
[1758554708894,1.28201503,112750.0,112740.0,0.38378214]
[1758554709096,0.43351942,112750.0,112740.0,0.64340038]
[1758554709402,0.83068,112750.0,112740.0,1.27518306]
[1758554709590,0.83068,112750.0,112740.0,1.25420038]
[1758554710400,0.82868,112750.0,112740.0,1.25520038]
[1758554710702,0.8389961,112760.0,112750.0,0.1228558]
[1758554710998,0.36704,112770.0,112760.0,0.122848]
[1758554711202,1.191,112770.0,112760.0,0.46880191]
[1758554711406,1.26907394,112770.0,112760.0,0.46880191]
[1758554711701,1.26907394,112770.0,112760.0,0.122848]
[1758554712604,1.62394941,112770.0,112760.0,0.122848]
[1758554713798,1.63094941,112770.0,112760.0,0.122848]
[1758554715004,1.2849955,112770.0,112760.0,0.122848]
[1758554717105,0.0939955,112770.0,112760.0,0.122848]
[1758554717299,0.9239555,112770.0,112760.0,0.122848]
[1758554719308,0.9238755,112770.0,112760.0,0.122848]
[1758554719705,0.9238755,112770.0,112760.0,0.46880191]
[1758554719906,1.2846755,112770.0,112760.0,0.122848]
[1758554720496,1.63062941,112770.0,112760.0,0.122848]
[1758554721407,1.2846755,112770.0,112760.0,0.122848]
[1758554721806,0.9238755,112770.0,112760.0,0.122848]
[1758554722511,1.63062941,112770.0,112760.0,0.03423]
[1758554722709,1.90461352,112770.0,112760.0,0.0004]
[1758554723211,1.90461352,112770.0,112750.0,0.1017727]
[1758554723404,1.90461352,112770.0,112750.0,0.122956]
[1758554723405,0.71299391,112760.0,112750.0,0.122956]
[1758554723606,0.71299391,112760.0,112750.0,0.122856]
[1758554724609,0.73799953,112760.0,112750.0,0.122856]
[1758554725609,0.74299953,112760.0,112750.0,0.03423]
[1758554725912,0.99299953,112760.0,112750.0,0.03628]
[1758554726101,1.47664562,112760.0,112750.0,0.03628]
[1758554726306,1.82259953,112760.0,112750.0,0.03628]
[1758554726706,1.82159953,112760.0,112750.0,0.03628]
[1758554726906,1.82359953,112760.0,112750.0,0.124906]
[1758554727112,1.82359953,112760.0,112750.0,0.03628]
[1758554727715,1.82359953,112760.0,112750.0,0.03668]
[1758554729117,1.82359953,112760.0,112750.0,0.01342]
[1758554729511,1.82359953,112760.0,112750.0,0.03668]
[1758554730111,1.82359953,112760.0,112750.0,0.03628]
[1758554730310,1.82359953,112760.0,112750.0,0.03668]
[1758554731618,1.85526827,112760.0,112750.0,0.03668]
[1758554733214,0.03100562,112760.0,112750.0,1.34206011]
[1758554733408,0.03100562,112760.0,112750.0,1.08206011]
[1758554733811,0.65220562,112760.0,112750.0,1.08206011]
[1758554734014,0.03100562,112760.0,112750.0,1.08206011]
[1758554734219,0.86040562,112760.0,112750.0,1.08206011]
[1758554734619,0.03100562,112760.0,112750.0,1.08206011]
[1758554734811,0.007,112760.0,112750.0,1.08206011]
[1758554737215,0.90119394,112770.0,112750.0,1.09382046]
[1758554737520,0.92510898,112770.0,112760.0,0.83165221]
[1758554737914,0.09574898,112770.0,112760.0,0.83165221]
[1758554738220,0.92498898,112770.0,112760.0,1.08165221]
[1758554738820,0.09674898,112770.0,112760.0,1.08165221]
[1758554739323,0.09674898,112770.0,112760.0,0.83165221]
[1758554739918,0.09774898,112770.0,112760.0,0.83165221]
[1758554741119,0.7539961,112800.0,112760.0,0.83165221]
[1758554741120,0.39246874,112800.0,112790.0,0.01302]
[1758554741426,1.24336874,112800.0,112790.0,0.47082881]
[1758554741814,1.28268573,112800.0,112790.0,0.47082881]
[1758554742219,0.45352573,112800.0,112790.0,0.47082881]
[1758554742418,1.28264573,112800.0,112790.0,0.47082881]
[1758554743326,1.37623273,112800.0,112790.0,0.47082881]
[1758554743520,1.38823273,112800.0,112790.0,0.47182881]
[1758554744027,1.37523273,112800.0,112790.0,0.47082881]
[1758554744221,1.28864573,112800.0,112790.0,0.47082881]
[1758554744419,1.37723273,112800.0,112790.0,0.47082881]
[1758554744618,1.38604018,112800.0,112790.0,0.47082881]
[1758554745018,1.38604018,112800.0,112790.0,0.38223391]
[1758554745921,1.38604018,112800.0,112790.0,0.03628]
[1758554747027,1.99395409,112800.0,112780.0,0.01312]
[1758554747221,0.38254,112790.0,112780.0,0.03718]
[1758554747426,0.38254,112790.0,112780.0,0.03708]
[1758554750128,0.72849391,112790.0,112780.0,0.03708]
[1758554750332,0.81808901,112790.0,112780.0,0.03708]
[1758554750629,1.3008551,112790.0,112780.0,0.03708]
[1758554751226,1.3008551,112790.0,112780.0,0.03668]
[1758554751430,1.3078551,112790.0,112780.0,0.03768]
[1758554751631,1.3118551,112790.0,112780.0,0.03768]
[1758554751832,1.65780901,112790.0,112780.0,0.03768]
[1758554752032,1.66478901,112790.0,112780.0,0.02466]
[1758554752528,1.65780901,112790.0,112780.0,0.03768]
[1758554755025,0.82908901,112790.0,112780.0,0.03768]
[1758554755332,1.65764901,112790.0,112780.0,0.03768]
[1758554755835,1.3116951,112790.0,112780.0,0.03768]
[1758554756132,0.4831351,112790.0,112780.0,0.1262829]
[1758554756527,0.4831351,112790.0,112780.0,0.03768]
[1758554756727,0.4831351,112790.0,112780.0,0.1262829]
[1758554757227,0.3728,112790.0,112780.0,0.1262829]
[1758554757432,0.012,112790.0,112780.0,1.08303681]
[1758554757631,0.012,112790.0,112780.0,0.72223681]
[1758554762633,0.012,112790.0,112780.0,0.3762829]
[1758554762937,0.012,112790.0,112780.0,0.72223681]
[1758554763438,0.012,112790.0,112780.0,1.55055681]
[1758554763738,0.012,112790.0,112780.0,0.72223681]
[1758554764330,0.39472,112790.0,112780.0,1.2046029]
[1758554764636,0.3728,112790.0,112780.0,1.55051681]
[1758554766139,0.19030638,112800.0,112790.0,0.1253154]
[1758554766339,0.2138396,112800.0,112790.0,0.4861154]
[1758554767440,0.2188396,112800.0,112790.0,0.4861154]
[1758554767641,0.2308396,112800.0,112790.0,0.4871154]
[1758554768230,0.20730638,112800.0,112790.0,0.4871154]
[1758554769643,0.19530638,112800.0,112790.0,0.4871154]
[1758554769834,0.19530638,112800.0,112790.0,0.39852]
[1758554770034,0.19530638,112800.0,112790.0,0.03772]
[1758554770234,0.21384816,112800.0,112790.0,0.03772]
[1758554770437,0.21584816,112800.0,112790.0,0.03772]
[1758554770638,0.47516529,112800.0,112790.0,0.29703713]
[1758554771038,0.45162351,112800.0,112790.0,0.29703713]
[1758554772439,0.71094064,112800.0,112790.0,0.29703713]
[1758554772939,0.45162351,112800.0,112790.0,0.29703713]
[1758554773141,0.45162351,112800.0,112790.0,0.03772]
[1758554773442,0.45162351,112800.0,112790.0,0.29703713]
[1758554773648,0.45162351,112800.0,112790.0,0.03772]